bitfinex/quotes_ETHUSD_20240630
["timestamp","ask_amount","ask_price","bid_price","bid_amount"]
[1719773792090,0.835,3429.3,3428.5,0.04660949]
[1719773792293,2.4816,3429.2,3428.5,0.04660949]
[1719773792634,0.835,3428.9,3428.1,0.835]
[1719773792797,0.835,3428.9,3427.7,5.53052832]
[1719773792798,2.3423,3428.8,3427.7,3.14412832]
[1719773792992,2.3423,3428.8,3428.2,0.0467019]
[1719773793221,2.3423,3428.8,3428.0,0.835]
[1719773793735,2.3423,3428.8,3428.1,0.04673271]
[1719773794431,2.3423,3428.8,3428.1,0.27340598]
[1719773796642,2.3423,3428.8,3428.2,0.835]
[1719773796937,2.3423,3428.8,3428.3,0.0466711]
[1719773797138,2.3423,3428.8,3428.4,0.835]
[1719773797319,2.3423,3428.8,3428.4,0.88164029]
[1719773798939,2.3423,3429.3,3428.4,0.88164029]
[1719773799638,0.2122424,3429.2,3428.4,0.88164029]
[1719773801067,0.2122424,3429.2,3428.4,0.04664029]
[1719773801272,2.3423,3429.1,3428.3,0.835]
[1719773801569,0.2122424,3429.0,3428.4,0.04667456]
[1719773802063,3.0,3429.9,3428.9,0.835]
[1719773802280,2.5545302,3429.8,3428.6,2.2649]
[1719773802425,0.2122302,3429.7,3429.1,0.835]
[1719773802822,0.2122302,3429.7,3429.2,0.04643462]
[1719773804127,2.3423,3429.8,3429.2,0.04643462]
[1719773805025,2.3423,3429.8,3429.3,0.835]
[1719773805426,2.3423,3429.8,3429.4,0.04637304]
[1719773806470,2.3423,3429.8,3428.8,9.323]
[1719773806642,2.3423,3429.8,3428.9,2.0528512]
[1719773806975,2.3423,3429.8,3429.0,0.0464962]
[1719773808075,2.3423,3430.8,3429.1,2.2649]
[1719773808250,0.21218452,3430.7,3429.1,2.2649]
[1719773808453,2.89774845,3430.6,3429.2,0.43642474]
[1719773808664,2.3423,3430.4,3429.2,0.482778]
[1719773808977,0.21218451,3430.3,3429.2,0.5410939]
[1719773809276,3.21218451,3430.3,3429.2,0.5410939]
[1719773809436,3.0,3430.3,3429.2,0.5410939]
[1719773809636,0.53423,3430.2,3429.2,0.482778]
[1719773810376,0.53423,3430.2,3429.2,0.54109389]
[1719773810581,2.3423,3430.4,3429.3,0.05831589]
[1719773811176,2.3423,3430.4,3429.4,0.04621355]
[1719773815846,2.3423,3430.4,3429.5,0.436425]
[1719773816243,2.3423,3430.4,3429.6,0.04614342]
[1719773820393,2.57653,3430.4,3429.6,0.04614342]
[1719773823299,2.3658,3431.0,3429.7,2.4624]
[1719773823507,2.3658,3431.0,3429.9,2.4624]
[1719773824168,2.3658,3431.0,3430.0,0.04491494]
[1719773824370,2.3658,3431.0,3430.1,0.25656201]
[1719773824566,2.3658,3431.0,3430.1,0.3014451]
[1719773827762,2.3658,3431.0,3430.2,0.834]
[1719773827957,2.3658,3431.0,3430.2,0.87879133]
[1719773829761,2.3658,3431.8,3430.4,0.834]
[1719773829968,0.21213305,3431.7,3430.4,0.834]
[1719773830192,0.834,3431.4,3430.4,0.834]
[1719773830395,0.834,3431.4,3430.5,0.04469153]
[1719773833826,3.0,3431.7,3430.5,0.04469153]
[1719773834020,0.834,3431.6,3430.6,0.834]
[1719773834387,0.834,3431.6,3430.7,0.04460754]
[1719773834582,3.60140182,3431.7,3430.7,0.04460754]
[1719773834583,0.834,3431.4,3430.7,0.04460754]
[1719773835183,3.0,3431.7,3430.7,0.04460754]
[1719773835391,3.0,3431.7,3431.3,0.834]
[1719773835716,0.834,3432.0,3431.1,0.834]
[1719773836026,0.834,3432.0,3431.4,0.04426386]
[1719773836306,3.24899,3432.2,3431.0,3.215]
[1719773836521,0.834,3432.0,3431.5,0.04423311]
[1719773836679,2.898199,3431.9,3431.5,0.04423311]
[1719773836874,3.0,3431.8,3431.0,2.381]
[1719773837648,3.0,3431.8,3431.1,0.04432296]
[1719773838139,3.0,3431.8,3431.0,2.381]
[1719773838298,0.834,3431.7,3430.7,0.834]
[1719773838636,0.834,3431.7,3430.6,2.381]
[1719773838637,0.834,3431.7,3430.8,0.04441523]
[1719773838842,0.834,3431.5,3430.8,0.04441523]
[1719773839003,0.834,3431.5,3430.6,2.381]
[1719773839202,0.834,3431.5,3430.9,0.04437913]
[1719773839542,0.834,3431.5,3430.6,2.381]
[1719773839696,0.834,3431.5,3431.0,0.04434837]
[1719773839902,2.4899,3431.4,3429.6,2.381]
[1719773840098,0.834,3430.8,3429.8,0.834]
[1719773840402,0.834,3430.8,3429.9,0.04323304]
[1719773840712,2.4899,3431.4,3429.9,0.04323304]
[1719773840915,0.834,3430.9,3429.9,0.04323304]
[1719773841630,0.834,3430.9,3430.0,0.834]
[1719773842142,2.4899,3431.4,3430.1,0.04317149]
[1719773842320,0.834,3431.0,3430.1,0.04317149]
[1719773843019,0.834,3430.8,3430.1,0.04317149]
[1719773844105,0.834,3430.8,3430.2,0.04320891]
[1719773844350,0.834,3430.8,3430.0,0.70507149]
[1719773844537,0.834,3430.8,3430.3,0.04173909]
[1719773844742,0.834,3430.8,3430.0,0.70507149]
[1719773844898,0.834,3430.8,3430.4,0.04170832]
[1719773845307,0.834,3430.8,3430.0,0.70507149]
[1719773845563,0.834,3430.8,3430.5,0.04167755]
[1719773845730,0.834,3430.8,3430.0,0.70507149]
[1719773846067,2.4899,3431.2,3430.6,0.04164679]
[1719773846378,2.4899,3430.6,3429.6,2.381]
[1719773846523,0.834,3430.4,3429.6,2.381]
[1719773846732,0.834,3430.4,3429.7,0.041928]
[1719773847418,2.4899,3431.1,3430.2,0.834]
[1719773847619,0.54899,3431.0,3430.2,3.215]
[1719773847817,0.54899,3431.0,3430.3,0.04178172]
[1719773850850,0.54899,3431.0,3430.4,2.381]
[1719773851158,0.834,3431.3,3430.5,0.04172018]
[1719773851345,0.2121371,3431.2,3430.5,0.04172018]
[1719773851512,0.834,3431.3,3430.5,0.04172018]
[1719773851831,2.4899,3431.5,3430.4,2.381]
[1719773852013,0.834,3431.2,3430.4,2.381]
[1719773856658,0.21214096,3431.1,3430.4,2.381]
[1719773857054,0.21214096,3431.1,3430.5,0.041734]
[1719773857556,0.834,3431.2,3430.5,0.041734]
[1719773857753,0.834,3430.6,3430.5,0.041734]
[1719773857985,0.834,3430.6,3429.9,2.3294]
[1719773858155,0.834,3430.6,3430.5,0.0417372]
[1719773858353,2.3089,3430.8,3429.9,2.3294]
[1719773858704,2.3089,3430.8,3430.5,0.0417372]
[1719773858705,0.21216998,3430.7,3430.5,0.0417372]
[1719773858866,0.834,3430.5,3429.6,9.6494]
[1719773859084,0.834,3430.5,3429.6,2.3294]
[1719773859291,0.834,3430.5,3429.7,0.04072338]
[1719773861678,0.252107,3430.6,3429.8,0.834]
[1719773861889,0.252107,3430.6,3429.9,0.04066183]
[1719773862274,0.834,3430.9,3430.0,0.834]
[1719773862624,0.324899,3431.3,3430.5,0.834]
[1719773862625,3.0,3431.1,3430.5,0.834]
[1719773862825,3.324899,3431.3,3430.5,0.834]
[1719773863115,0.21213138,3431.2,3430.5,0.834]
[1719773863304,0.16200204,3431.1,3430.6,0.04049441]
[1719773863517,0.16200204,3431.1,3430.4,0.834]
[1719773863881,0.16200204,3431.1,3430.5,0.04052517]
[1719773864086,0.324899,3431.3,3430.1,2.3294]
[1719773864416,0.21213301,3431.2,3430.2,0.04061748]
[1719773867425,0.324899,3431.3,3430.2,0.04061748]
[1719773867639,0.21213908,3431.2,3430.2,0.04061748]
[1719773867939,0.21213904,3431.2,3430.2,0.04061748]
[1719773869303,2.3089,3431.1,3430.2,0.04061748]
[1719773869506,0.49673284,3431.0,3430.2,0.04061748]
[1719773870577,0.21215624,3430.9,3430.2,0.04061748]
[1719773870722,0.49675056,3431.0,3430.2,0.04061748]
[1719773872051,0.49675056,3431.0,3430.1,2.3294]
[1719773872221,0.58056506,3430.9,3430.1,2.3294]
[1719773872423,0.21215676,3430.8,3430.1,2.3294]
[1719773873749,0.21216109,3430.8,3430.2,0.04058551]
[1719773874119,0.21214293,3431.4,3430.3,2.3393]
[1719773874455,3.76678722,3431.4,3430.4,0.04050582]
[1719773874620,0.21214293,3431.3,3430.4,0.04050582]
[1719773874822,0.21214293,3431.3,3430.3,2.3393]
[1719773875341,0.21214293,3431.4,3430.3,2.3393]
[1719773876818,0.21212994,3431.4,3430.3,2.3393]
[1719773877023,0.55464299,3431.3,3430.3,2.3393]
[1719773877238,0.21212994,3431.2,3430.3,2.3393]
[1719773877803,0.2121312,3431.2,3430.3,2.3393]
[1719773879177,0.2121312,3432.0,3431.1,2.3393]
[1719773879354,0.2121312,3432.1,3431.2,0.43413]
[1719773879539,0.2121312,3432.3,3431.1,2.3393]
[1719773879743,0.2121312,3432.6,3431.2,0.04023097]
[1719773879938,4.3363,3432.7,3431.2,0.04023097]
[1719773880252,2.002,3432.3,3430.5,2.3393]
[1719773880452,2.3343,3432.2,3430.5,2.3393]
[1719773880654,2.3343,3432.2,3430.6,0.03915396]
[1719773880655,0.21210707,3432.1,3430.6,0.03915396]
[1719773881373,3.21210707,3432.1,3430.6,0.03915396]
[1719773881579,0.21210707,3432.0,3430.6,0.03915396]
[1719773881797,3.21210707,3432.1,3430.6,0.03915396]
[1719773882085,0.21210707,3432.0,3430.6,0.03915396]
[1719773882282,3.0,3432.1,3430.6,0.03915396]
[1719773882450,0.21211681,3432.0,3430.6,0.03915396]
[1719773885451,0.21213413,3432.0,3430.6,0.03915396]
[1719773886190,2.4225,3431.9,3430.6,0.03915396]
[1719773886491,0.76213413,3431.8,3430.6,0.03915396]
[1719773886691,0.21213413,3431.7,3430.6,0.03915396]
[1719773886894,0.21213413,3431.7,3430.5,2.3393]
[1719773888193,0.21213413,3431.7,3430.6,0.0390826]
[1719773888498,3.0,3432.2,3430.7,2.3292]
[1719773888672,0.21211037,3432.1,3430.7,2.36825184]
[1719773888867,3.21211037,3432.2,3430.7,2.36825184]
[1719773889056,0.21211037,3432.1,3430.7,2.36825184]
[1719773889747,0.834,3431.5,3430.7,2.36825184]
[1719773889952,0.21211037,3431.4,3430.7,2.36825184]
[1719773890198,2.4225,3431.3,3430.7,0.03905184]
[1719773890509,0.834,3430.9,3430.2,2.3292]
[1719773890656,0.834,3430.9,3430.8,0.03897954]
[1719773890991,0.834,3430.9,3430.2,2.3292]
[1719773890992,1.04615939,3430.9,3430.2,2.3292]
[1719773891290,0.21215939,3430.8,3430.2,2.3292]
[1719773891495,0.21215939,3430.8,3430.3,0.03916851]
[1719773891692,0.21215809,3430.8,3430.3,0.03916851]
[1719773891847,3.0,3431.2,3429.4,7.32]
[1719773891848,0.834,3430.7,3429.4,7.32]
[1719773892053,0.834,3430.7,3430.4,0.03913774]
[1719773892278,0.21217138,3430.6,3429.5,2.3292]
[1719773892550,0.834,3430.5,3429.6,0.27230394]
[1719773892757,0.21217138,3430.4,3429.6,0.27230394]
[1719773892977,0.21217138,3430.4,3429.6,0.87338394]
[1719773893181,0.21217138,3430.5,3429.6,0.87338394]
[1719773893791,0.21217138,3430.5,3429.6,0.03938394]
[1719773894051,0.21217138,3431.1,3429.6,0.03938394]
[1719773894198,2.003,3430.8,3429.6,0.03938394]
[1719773894375,0.21217138,3430.7,3429.5,2.3292]
[1719773894571,0.21220317,3430.7,3429.5,2.3292]
[1719773894870,0.21220386,3430.7,3429.5,2.3292]
[1719773895071,0.21220386,3430.7,3428.7,7.32]
[1719773895269,0.52152039,3430.6,3428.8,3.3336]
[1719773895459,0.52152039,3430.6,3428.8,3.37333362]
[1719773895460,0.21220386,3430.5,3428.8,3.37333362]
[1719773896593,2.4635,3430.4,3428.8,3.37333362]
[1719773896793,0.21220386,3430.3,3428.8,3.37333362]
[1719773896995,3.21220386,3430.3,3428.8,3.37333362]
[1719773897204,0.77977425,3430.2,3428.9,0.53763336]
[1719773897369,0.21221514,3430.1,3428.9,0.03983494]
[1719773897571,0.56757039,3430.2,3428.9,0.03983494]
[1719773897797,0.21222788,3430.1,3428.9,0.03983494]
[1719773898776,2.003,3429.7,3428.9,0.03983494]
[1719773898975,0.21222788,3429.6,3428.9,0.03983494]
[1719773899207,0.22152279,3429.5,3427.9,2.4013]
[1719773899417,0.21222788,3429.8,3427.9,2.4013]
[1719773899904,0.21222788,3429.8,3428.0,0.03890258]
[1719773900708,0.21227314,3429.8,3428.0,0.03890258]
[1719773903820,3.0,3429.9,3428.2,4.4043]
[1719773903984,2.4635,3430.0,3428.3,2.4013]
[1719773903985,5.4635,3430.0,3428.3,2.4013]
[1719773904307,5.4635,3430.0,3428.3,2.89026119]
[1719773908598,5.4635,3430.0,3428.3,2.94859332]
[1719773913118,3.0,3430.0,3428.6,2.003]
[1719773913439,3.0,3430.2,3428.8,2.4424]
[1719773913607,2.3378,3430.3,3428.8,2.4424]
[1719773913809,2.3378,3430.3,3428.9,2.481121]
[1719773914011,2.3378,3430.3,3428.9,2.4424]
[1719773914245,0.73408,3430.2,3428.9,2.4424]
[1719773914450,3.73408,3430.2,3428.9,2.4424]
[1719773919578,3.73408,3430.2,3429.0,0.0386732]
[1719773919943,0.835,3429.7,3429.0,0.0386732]
[1719773921183,3.73408,3430.2,3429.1,2.4424]
[1719773921343,0.835,3429.9,3429.1,2.4424]
[1719773921546,0.835,3429.9,3429.1,2.48102858]
[1719773921759,0.835,3429.7,3429.1,2.48102858]
[1719773924363,0.835,3429.5,3429.1,2.48102858]
[1719773924953,0.835,3429.5,3429.1,2.4424]
[1719773925155,0.835,3429.5,3429.2,0.03859672]
[1719773925701,0.835,3429.7,3429.2,0.03859672]
[1719773929822,0.835,3429.5,3429.2,0.03859672]
[1719773934333,0.835,3429.5,3428.8,2.2959]
[1719773934533,0.835,3429.5,3429.3,0.03856065]
[1719773934822,0.835,3429.5,3428.8,2.2959]
[1719773935029,3.364257,3430.1,3429.4,0.03852986]
[1719773935192,0.835,3429.5,3429.4,0.03852986]
[1719773935414,0.835,3429.5,3428.8,2.2959]
[1719773935595,2.4332,3429.9,3429.4,0.03853517]
[1719773935778,0.835,3429.5,3428.8,2.2959]
[1719773935980,0.835,3429.2,3428.8,2.2959]
[1719773936211,0.835,3429.2,3428.9,0.03870081]
[1719773936685,0.835,3429.2,3428.8,2.2959]
[1719773936984,0.835,3429.2,3429.0,0.03867002]
[1719773937198,1.04727582,3429.1,3428.8,2.2959]
[1719773937529,0.21227582,3429.0,3428.8,2.2959]
[1719773937894,0.21227582,3429.0,3428.0,2.2959]
[1719773938097,0.21227582,3429.0,3428.1,0.835]
[1719773938682,0.21227907,3429.0,3428.0,2.2959]
[1719773938912,0.21227907,3429.0,3428.0,3.36815413]
[1719773939131,0.835,3428.9,3428.0,2.53315413]
[1719773939315,0.2122817,3428.8,3428.0,2.2959]
[1719773940796,0.21229156,3428.8,3428.0,2.2959]
[1719773941227,0.21229157,3428.8,3428.0,2.2959]
[1719773941437,0.21229015,3428.8,3428.0,2.2959]
[1719773941942,0.21228998,3428.8,3428.0,2.2959]
[1719773943901,0.835,3428.9,3428.0,2.2959]
[1719773944091,0.21228998,3428.8,3428.0,2.2959]
[1719773944293,0.21229034,3428.8,3428.0,2.2959]
[1719773945208,0.835,3428.3,3427.7,2.2959]
[1719773945501,0.21231318,3428.2,3427.7,2.2959]
[1719773945736,0.21231318,3428.4,3427.7,2.2959]
[1719773947433,0.835,3428.3,3427.7,2.2959]
[1719773948444,1.2185,3428.3,3427.7,2.2959]
[1719773948647,1.2185,3428.3,3427.8,0.03911935]
[1719773948807,0.3835,3428.3,3427.7,2.2959]
[1719773950411,1.2185,3428.3,3427.7,2.2959]
[1719773952891,0.835,3427.9,3427.7,2.2959]
[1719773953207,0.835,3427.9,3426.9,2.4539]
[1719773953411,0.835,3427.9,3427.0,2.4539]
[1719773953709,0.3835,3428.3,3427.6,0.835]
[1719773953857,0.21234297,3428.2,3427.6,0.835]
[1719773954052,0.21234297,3428.2,3427.7,0.03792434]
[1719773954283,0.21234297,3428.2,3427.0,2.4539]
[1719773954569,0.21234297,3428.2,3427.5,0.835]
[1719773955100,0.21234297,3428.2,3427.6,0.03795515]
[1719773956247,0.3835,3428.3,3427.6,0.03795515]
[1719773957592,0.3835,3428.3,3427.7,3.2889]
[1719773957988,0.3835,3428.3,3427.8,0.03789352]
[1719773958295,0.3835,3428.3,3427.7,0.835]
[1719773958646,0.3835,3428.3,3427.8,0.03789352]
[1719773958896,0.3835,3428.3,3427.4,2.4539]
[1719773958897,0.3835,3428.3,3427.5,0.835]
[1719773959059,0.3835,3428.3,3427.9,0.03786271]
[1719773959271,0.3835,3428.3,3427.5,0.835]
[1719773959590,0.3835,3428.3,3428.0,0.0378319]
[1719773959894,0.3835,3428.3,3428.1,0.03780109]
[1719773960103,0.3835,3428.3,3427.5,0.835]
[1719773960268,0.3835,3428.3,3428.2,0.03777028]
[1719773960590,0.3835,3428.3,3427.5,0.835]
[1719773960949,0.3835,3428.3,3427.6,0.03795515]
[1719773961589,3.835,3428.6,3427.7,0.835]
[1719773961827,5.3219,3429.0,3428.5,0.835]
[1719773961970,3.0,3428.9,3428.5,0.835]
[1719773962357,3.0,3429.1,3428.7,0.835]
[1719773962559,0.3,3429.0,3428.7,0.835]
[1719773962798,2.3219,3429.5,3428.8,0.03758547]
[1719773962966,0.21228113,3429.4,3428.7,0.835]
[1719773963161,0.21228107,3429.4,3428.7,0.835]
[1719773963374,3.21228107,3429.4,3428.7,0.835]
[1719773963579,3.0,3429.4,3428.7,0.835]
[1719773963885,2.3219,3429.5,3428.7,0.835]
[1719773963886,0.74447096,3429.3,3428.7,0.835]
[1719773964209,0.21228096,3429.2,3428.7,0.835]
[1719773964353,0.21228096,3429.2,3428.9,0.835]
[1719773964555,0.53219,3429.3,3428.9,0.835]
[1719773964793,0.21227561,3429.2,3428.9,0.835]
[1719773965093,0.37444656,3429.1,3428.9,0.835]
[1719773966200,0.37444656,3429.1,3428.3,2.4539]
[1719773966500,0.37444656,3429.1,3428.7,0.835]
[1719773969821,0.37444656,3429.1,3428.3,2.4539]
[1719773969975,0.17416366,3429.0,3428.3,2.4539]
[1719773971391,0.386445,3429.0,3428.3,2.4539]
[1719773971587,0.17416366,3429.0,3428.3,2.4539]
[1719773971776,0.38644502,3429.0,3428.3,2.4539]
[1719773972392,0.17416366,3429.0,3428.3,2.4539]
[1719773973498,0.835,3428.4,3427.4,2.3104]
[1719773973699,2.3192,3428.9,3427.4,2.3104]
[1719773973700,0.835,3428.3,3427.4,2.3104]
[1719773974035,0.835,3428.7,3428.4,0.03765554]
[1719773974238,0.21231104,3428.6,3428.0,2.3104]
[1719773974740,0.21231104,3428.6,3428.1,0.03774795]
[1719773975445,0.21231104,3428.7,3428.0,2.3104]
[1719773975661,0.667452,3428.6,3428.0,2.3104]
[1719773976954,3.30800895,3428.8,3428.1,0.835]
[1719773977110,0.21229149,3428.7,3428.0,2.3104]
[1719773978648,0.17416366,3429.0,3428.1,0.835]
[1719773978824,0.21228077,3429.0,3428.3,0.835]
[1719773979049,3.21227549,3429.2,3428.6,2.3104]
[1719773979214,0.21227549,3429.1,3428.6,2.3104]
[1719773979934,0.835,3429.0,3428.6,2.3104]
[1719773980145,0.21227549,3428.9,3428.2,2.3104]
[1719773980708,0.21227549,3428.9,3428.3,0.03768634]
[1719773981397,0.21227549,3428.9,3428.2,2.3104]
[1719773981849,0.835,3429.0,3428.3,0.03768634]
[1719773982009,0.21228,3428.9,3428.3,0.03768634]
[1719773982344,0.21228,3428.9,3428.4,0.03765554]
[1719773982643,0.21228,3428.9,3428.2,2.3104]
[1719773982938,0.21228,3428.9,3428.2,2.62494]
[1719773983139,4.36275138,3429.4,3428.2,3.45994]
[1719773983315,1.04726195,3429.3,3428.2,3.45994]
[1719773983513,0.835,3429.1,3428.2,3.1454]
[1719773983728,0.21226195,3429.0,3428.3,0.03770014]
[1719773984906,3.0,3429.4,3428.3,0.87270014]
[1719773985106,0.835,3429.2,3428.3,0.87270014]
[1719773985416,0.835,3429.0,3428.3,0.03770014]
[1719773985621,0.21226801,3428.9,3428.3,0.03770014]
[1719773986001,0.835,3428.6,3428.3,0.03770014]
[1719773986446,0.835,3428.6,3427.9,2.3104]
[1719773986648,0.835,3428.6,3428.4,0.03766934]
[1719773986966,1.2185,3428.6,3428.5,0.03763853]
[1719773987104,1.43080108,3428.6,3428.5,0.03763853]
[1719773987301,0.59580108,3428.6,3427.9,2.3104]
[1719773987527,0.21230108,3428.5,3427.9,2.3104]
[1719773987733,0.21230108,3428.7,3427.9,2.3104]
[1719773988104,0.21230009,3428.7,3427.9,2.3104]
[1719773988635,0.21229849,3428.7,3427.9,2.3104]
[1719773989147,1.04729849,3428.8,3427.9,3.1454]
[1719773989341,0.21229849,3428.7,3427.9,3.46577403]
[1719773990281,0.21229849,3428.7,3427.9,2.3104]
[1719773991172,0.835,3428.8,3427.9,2.3104]
[1719773991360,0.21230439,3428.7,3427.9,2.3104]
[1719773991769,0.21230439,3428.8,3427.9,3.1454]
[1719773991955,3.21230439,3428.8,3427.9,3.1454]
[1719773992156,0.21230439,3428.7,3427.9,2.3104]
[1719773994281,1.68815044,3428.8,3427.9,2.3104]
[1719773994582,0.21229271,3428.7,3427.9,2.3104]
[1719773997500,1.68815044,3428.8,3427.9,2.3104]
[1719773997659,0.21230011,3428.7,3428.0,0.03780213]
[1719773998013,0.2123001,3428.7,3428.0,0.03780213]
[1719773998357,0.2123001,3428.7,3428.1,2.3365]
[1719773998592,3.835,3429.2,3428.2,2.3365]
[1719773998805,0.21227495,3429.1,3428.2,2.3365]
[1719773998978,1.04727495,3429.1,3428.3,0.03770439]
[1719773999158,0.21227495,3429.0,3428.3,0.03770439]
[1719773999358,0.21227495,3429.0,3428.2,2.3365]
[1719773999760,0.835,3428.9,3428.2,2.3365]
[1719774000001,0.21227495,3428.8,3428.2,2.3365]
[1719774000504,0.45849822,3428.8,3428.2,2.3365]
[1719774000795,0.21228607,3428.7,3428.2,2.3365]
[1719774001109,0.21228235,3428.7,3428.2,2.3365]
[1719774001307,0.4585052,3428.8,3428.2,2.3365]
[1719774001458,0.24622327,3428.8,3428.2,2.3365]
[1719774002402,0.21227869,3428.9,3428.2,2.3365]
[1719774002604,0.21227869,3428.9,3428.2,0.835]
[1719774002904,0.21227869,3429.1,3428.3,2.3365]
[1719774003112,0.2122607,3429.1,3428.3,2.3365]
[1719774004081,0.21227752,3429.1,3428.3,2.3365]
[1719774005186,0.21227752,3429.1,3428.3,2.65365]
[1719774005385,0.21227752,3429.1,3428.4,0.835]
[1719774005603,0.21227752,3429.2,3428.7,2.3189]
[1719774005805,0.835,3429.6,3428.7,2.3189]
[1719774005963,0.21227752,3429.5,3428.7,2.3189]
[1719774006161,0.21224066,3429.5,3428.7,2.3189]
[1719774009305,0.21224062,3429.5,3428.7,2.3189]
[1719774011988,1.04724062,3429.5,3428.7,2.3189]
[1719774012227,0.21224062,3429.4,3428.7,2.3189]
[1719774012521,0.835,3429.5,3428.7,2.64012264]
[1719774012827,0.21223944,3429.4,3428.7,2.64012264]
[1719774013630,0.835,3429.5,3428.7,2.64012264]
[1719774015603,3.0,3429.8,3428.7,2.64012264]
[1719774015787,0.835,3429.5,3428.7,2.64012264]
[1719774016805,3.0,3429.8,3428.7,2.64012264]
[1719774017014,0.835,3429.5,3428.7,2.64012264]
[1719774017835,0.835,3429.5,3428.8,0.03742286]
[1719774017989,0.835,3429.5,3428.7,2.3189]
[1719774018197,0.835,3429.5,3428.9,0.03739207]
[1719774018526,0.835,3429.5,3428.7,2.3189]
[1719774018527,0.835,3429.5,3429.0,0.03736127]
[1719774018906,0.835,3429.5,3428.7,2.3189]
[1719774019092,3.53761,3429.8,3428.8,0.03742286]
[1719774019413,0.2122441,3429.7,3428.8,0.03742286]
[1719774019649,0.835,3429.5,3428.8,0.03742286]
[1719774021137,3.53761,3429.8,3428.8,0.03742286]
[1719774021138,0.835,3429.0,3428.8,0.03742286]
[1719774021618,0.835,3429.0,3428.7,2.3189]
[1719774021815,0.835,3429.0,3428.9,0.03737823]
[1719774021990,0.3309,3429.0,3428.4,2.4551]
[1719774022187,0.835,3429.0,3428.9,0.03740799]
[1719774022448,3.0,3429.1,3428.4,2.4551]
[1719774022644,0.835,3429.0,3428.4,2.4551]
[1719774022844,0.835,3429.0,3428.5,0.03753118]
[1719774023133,0.835,3429.0,3428.4,2.4551]
[1719774023356,3.0,3429.1,3428.4,2.78411]
[1719774023530,0.835,3429.3,3428.4,2.78411]
[1719774023712,0.835,3429.3,3428.5,0.03753331]
[1719774025043,0.835,3429.2,3428.5,0.03753331]
[1719774025342,0.835,3429.2,3428.6,0.03750251]
[1719774025832,0.835,3429.2,3428.4,2.78411]
[1719774026065,0.835,3429.2,3428.7,0.03747171]
[1719774026219,0.835,3429.2,3428.4,2.78411]
[1719774026420,3.0,3429.4,3428.9,2.4551]
[1719774026717,0.835,3429.5,3429.0,0.03737932]
[1719774026921,0.835,3429.5,3428.9,2.4551]
[1719774027117,0.835,3429.5,3429.0,0.03737932]
[1719774027353,1.32774402,3429.4,3428.9,2.4551]
[1719774027553,1.32774402,3429.4,3428.4,0.835]
[1719774027554,0.835,3429.3,3428.5,2.4551]
[1719774027723,0.835,3429.3,3429.0,0.03737932]
[1719774028060,0.835,3429.3,3428.5,2.4051]
[1719774028621,0.835,3429.3,3428.6,0.03750251]
[1719774034534,3.0,3429.7,3428.6,0.03750251]
[1719774034756,0.835,3429.4,3428.6,0.03750251]
[1719774034968,0.835,3429.4,3428.5,2.4051]
[1719774038947,0.835,3429.6,3428.5,2.4051]
[1719774039157,0.21224036,3429.5,3428.5,2.72911]
[1719774039650,0.835,3429.4,3428.6,0.03750677]
[1719774039846,0.21224036,3429.3,3428.5,2.4051]
[1719774040046,0.21224036,3429.3,3428.7,0.03747598]
[1719774040237,0.21224036,3429.3,3428.5,2.4051]
[1719774040574,0.21225484,3429.3,3428.5,2.4051]
[1719774041786,3.174,3429.2,3428.5,2.4051]
[1719774041939,3.21225484,3429.1,3428.5,2.4051]
[1719774042139,0.21225484,3429.0,3428.6,0.03747914]
[1719774042477,0.21226633,3429.0,3428.6,0.03747914]
[1719774042838,3.0,3429.1,3428.6,0.03747914]
[1719774043176,3.835,3429.5,3428.6,0.32775791]
[1719774043351,3.835,3429.5,3428.5,2.4051]
[1719774043352,0.21224882,3429.4,3428.5,2.4051]
[1719774043541,3.835,3429.5,3428.5,2.4051]
[1719774043737,0.21225089,3429.4,3428.5,2.4051]
[1719774045282,0.835,3429.3,3428.5,2.4051]
[1719774045478,0.21225089,3429.2,3428.5,2.4051]
[1719774046379,0.21225089,3429.2,3427.7,7.32]
[1719774046380,0.835,3428.8,3427.8,2.4528]
[1719774046684,3.174,3428.9,3427.9,0.835]
[1719774046855,0.21227362,3428.8,3427.9,0.87269901]
[1719774047207,0.21227362,3428.8,3427.9,0.835]
[1719774047981,0.21227362,3428.8,3428.1,0.835]
[1719774048281,0.21227362,3429.0,3428.2,2.4528]
[1719774048498,0.21226526,3429.0,3428.2,2.4528]
[1719774048652,0.21226526,3429.0,3428.3,0.03757578]
[1719774048838,0.65888977,3429.0,3428.3,0.03757578]
[1719774049037,0.21226526,3428.9,3428.3,0.03757578]
[1719774049578,0.21226526,3428.9,3428.4,2.4528]
[1719774049788,0.41897983,3429.3,3428.4,2.4528]
[1719774050088,0.21226002,3429.2,3428.4,2.4528]
[1719774050253,0.82166741,3429.2,3428.5,0.03751417]
[1719774050585,0.21226002,3429.1,3428.5,0.03751417]
[1719774050787,0.21226002,3429.1,3428.6,2.4528]
[1719774050975,0.21226002,3429.2,3428.6,2.4528]
[1719774051144,1.04726002,3429.3,3428.7,0.03746001]
[1719774051345,0.21226002,3429.2,3428.7,0.03746001]
[1719774052315,0.21226002,3429.4,3428.6,2.4528]
[1719774052480,0.21226002,3429.5,3428.6,2.4528]
[1719774053118,0.21223789,3429.5,3428.6,2.4528]
[1719774053281,0.21223871,3429.5,3428.6,2.4528]
[1719774053811,0.21223871,3429.5,3428.6,2.78158]
[1719774054115,0.21223871,3429.5,3428.7,0.03746001]
[1719774056216,0.835,3429.6,3428.7,0.03746001]
[1719774056517,0.21223681,3429.5,3428.7,0.03746001]
[1719774059309,0.835,3429.6,3428.7,0.03746001]
[1719774059513,0.21224437,3429.5,3428.7,0.03746001]